[Event "1st Bella Italia International 2022"]
[Site "Lignano"]
[Date "2022.08.23"]
[Round "9.6"]
[White "Bettalli, Francesco"]
[Black "Jonkman, Harmen"]
[Result "1-0"]
[ECO "C45"]
[WhiteElo "2237"]
[BlackElo "2373"]
[Annotator "TA"]
[PlyCount "89"]
[EventDate "2022.08.18"]
[EventCountry "ITA"]
[SourceTitle "playchess.com"]
[Source "ChessBase"]
[SourceQuality "1"]
[TimeControl "5400+30"]

{[%evp 12,89,24,18,35,38,33,32,43,52,50,46,40,34,50,41,33,30,41,35,50,37,67,50,76,67,90,85,86,87,79,62,71,73,60,66,58,49,47,43,35,45,58,35,132,78,64,76,116,102,186,168,172,159,212,214,463,453,791,761,962,738,964,967,962,890,29958,29965,29958,29958,1626,10052,5861,5506,6415,5797,29986,29986,29986,29987]} 1. e4 {[%emt 0:19:20]} e5 {[%emt 0:00:11]} 2. Nf3 {[%emt 0:00:05]} Nc6 {[%emt 0:00:08]} 3. d4 {[%emt 0:00:05]} exd4 {[%emt 0:00:12]} 4. Nxd4 {[%emt 0:00:05]} Bb4+ {[%emt 0:00:39]} 5. c3 {[%emt 0:00:05]} Bc5 {[%emt 0:00:06]} 6. Be3 {[%emt 0:00:03]} Bb6 {[%emt 0:00:14]} 7. Nf5 {[%emt 0:00:05]} Bxe3 {[%emt 0:24:31] C45: Scotch Game.} 8. Nxe3 {[%emt 0:00:39]} (8. fxe3 g6 9. Ng3 Nf6 $17) 8... d6 {[%emt 0:02:47]} 9. c4 {[%emt 0:00:24]} Nge7 {[%emt 0:06:00] White is slightly better.} 10. Nc3 {[%emt 0:01:12] [#]} Be6 $146 {[%emt 0:05:31]} ({Predecessor:} 10... O-O 11. Be2 f5 12. exf5 Nxf5 13. Nxf5 Bxf5 14. O-O Be6 15. Qd2 Qf6 16. Rad1 Qf4 {½-½ (32) Giri,A (2780)-Nakamura,H (2736) chess24.com INT 2021}) 11. Qd2 {[%emt 0:01:19]} Qd7 {[%emt 0:00:27]} 12. Be2 {[%emt 0:01:11]} f5 {[%emt 0:02:30]} 13. exf5 {[%emt 0:00:31]} Nxf5 {[%emt 0:00:31]} 14. Nxf5 {[%emt 0:00:36]} Bxf5 {[%emt 0:00:01]} 15. O-O {[%emt 0:00:11]} O-O {[%emt 0:00:50]} 16. Rad1 {[%emt 0:09:49]} Qf7 {[%emt 0:05:55]} 17. f4 {[%emt 0:02:28]} Ne7 {[%emt 0:10:02]} 18. b3 {[%emt 0:04:06]} Kh8 {[%emt 0:10:05]} 19. Bf3 {[%emt 0:01:24]} Rab8 {[%emt 0:06:36]} 20. Rde1 {[%emt 0:01:49]} Bd7 {[%emt 0:02:17]} 21. g3 {[%emt 0:01:57]} Bc6 {[%emt 0:01:22]} 22. Bxc6 {[%emt 0:00:52] White is more active.} (22. Bg4 {keeps more tension.} Nf5 23. Qd3 a6 24. a4) 22... Nxc6 {[%emt 0:00:36]} 23. Nd5 {[%emt 0:00:06]} Rbe8 {[%emt 0:00:25]} 24. Rxe8 {[%emt 0:00:26]} Rxe8 {[%emt 0:00:02]} 25. Re1 {[%emt 0:00:01]} Rxe1+ {[%emt 0:01:04]} 26. Qxe1 $14 {[%emt 0:00:01][%cal Od5c7][%mdl 4096] Endgame Strongly threatening Nxc7! KQN-KQN} h6 {[%emt 0:01:29]} 27. Qe4 {[%emt 0:01:33]} Qh5 {[%emt 0:02:49]} (27... a5 $14) 28. Kg2 {[%emt 0:24:49]} ({White should play} 28. Nxc7 Qc5+ 29. Kg2) 28... Qf7 $16 {[%emt 0:01:09] Inhibits Qe8+.} 29. g4 {[%emt 0:03:08][%cal Bg3g4,Bg4h5,Bh5h6,Bh6h7][%mdl 32]} g6 {[%emt 0:01:38]} 30. Qe3 {[%emt 0:02:13]} (30. g5 {feels hotter.} Kg7 31. h4 h5 32. Kg3) 30... a6 {[%emt 0:00:42]} (30... a5 $16 {was necessary.}) 31. Qc3+ $18 {[%emt 0:01:57]} Kg8 {[%emt 0:00:03] [#]} 32. Qf6 {[%emt 0:04:08] Against Ne7} Qe8 {[%emt 0:02:13]} (32... Qxf6 $16 33. Nxf6+ Kf7) 33. Kf3 {[%emt 0:00:12]} h5 $2 {[%emt 0:00:11]} (33... Qf7 34. Qxf7+ Kxf7) 34. gxh5 {[%emt 0:00:21]} Qe1 {[%emt 0:00:38]} (34... gxh5 $142 35. Qg5+ Kf7) 35. Qxg6+ {[%emt 0:00:41]} ({Stronger than} 35. hxg6 Qf1+ 36. Ke4 (36. Kg3 Qg1+ 37. Kf3 Qf1+ 38. Kg4 Qg2+ 39. Kh5 Qf3+ 40. Kh6 Qh3+ 41. Kg5 Qg2+ 42. Kh5 Qe2+ 43. Kh6 Qxh2+ 44. Kg5 Qg3+ 45. Kh5 Qf3+ 46. Kh4 Qf2+ 47. Kh5 Qf3+ 48. Kh6 Qh3+ 49. Kg5 Qg3+ 50. Kh5 Qf3+ $11) 36... Qb1+ 37. Kf3 Qf1+ 38. Kg4 (38. Kg3 Qg1+ 39. Kh4 Qf2+ 40. Kh5 Qe2+ 41. Kh6 Qxh2+ 42. Kg5 Qg3+ 43. Kh6 Qh3+ 44. Kg5 Qg3+ 45. Kh5 Qf3+ 46. Kh4 Qf2+ 47. Kh5 Qf3+ 48. Kh6 Qh3+ 49. Kg5 Qg3+ $11) 38... Qg2+ 39. Kh5 (39. Kf5 Qh3+ 40. Ke4 Qg2+ 41. Ke3 Qg1+ 42. Kf3 Qf1+ $11) 39... Qe2+ 40. Kh6 (40. Kg5 Qg2+ 41. Kh5 Qe2+ 42. Kh6 Qxh2+ 43. Kg5 Qg3+ 44. Kh6 Qh3+ 45. Kg5 Qg3+ 46. Kh5 Qf3+ 47. Kh6 Qh3+ 48. Kg5 Qg3+ $11) 40... Qxh2+ 41. Kg5 Qg3+ 42. Kh6 Qh3+ 43. Kg5 Qg3+ 44. Kh5 Qf3+ 45. Kh6 Qh3+ 46. Kg5 Qg3+ $11) 35... Kf8 {[%emt 0:01:29]} 36. Qf5+ {[%emt 0:00:11]} Ke8 {[%emt 0:00:43]} 37. Qe4+ {[%emt 0:02:33]} Qxe4+ {[%emt 0:00:03]} 38. Kxe4 {[%emt 0:00:01] KN-KN} Kd7 {[%emt 0:00:01]} 39. h6 {[%emt 0:00:25]} Nd8 {[%emt 0:00:01]} 40. h7 {[%emt 0:00:11]} Nf7 {[%emt 0:00:01]} 41. Kf5 {[%emt 0:00:10] Threatening mate with Kf6.} c6 {[%emt 0:00:03] [#]} 42. Kf6 $1 {[%emt 0:00:28]} Nh8 {[%emt 0:00:01]} (42... Ke8 43. Nc7+) 43. Kg7 {[%emt 0:00:51]} cxd5 {[%emt 0:00:41]} 44. Kxh8 {[%emt 0:00:12]} dxc4 {[%emt 0:00:02]} 45. bxc4 {[%emt 0:00:07] Weighted Error Value: White=0.06 (flawless) /Black=0.57} 1-0

[Event "1st Bella Italia International 2022"]
[Site "Lignano"]
[Date "2022.08.23"]
[Round "9.7"]
[White "Micottis, Dorian"]
[Black "Priyanka Nutakki"]
[Result "1/2-1/2"]
[ECO "A07"]
[WhiteElo "2263"]
[BlackElo "2308"]
[Annotator "TA"]
[PlyCount "122"]
[EventDate "2022.08.18"]
[EventCountry "ITA"]
[SourceTitle "playchess.com"]
[Source "ChessBase"]
[SourceQuality "1"]
[TimeControl "5400+30"]

{[%evp 16,122,22,0,0,0,0,5,6,0,14,-28,32,22,40,31,49,47,98,98,114,101,92,81,86,95,87,83,77,63,64,77,60,37,38,43,74,19,33,16,31,23,43,31,37,39,34,0,0,-53,0,0,22,7,14,9,29,-61,0,-97,0,0,62,60,93,97,92,62,108,94,95,43,35,53,55,49,31,0,19,15,68,56,71,6,7,0,0,0,0,0,0,0,0,0,0,-6,0,0,0,0,0,0,0,0,0,0,0,0,0]} 1. Nf3 {[%emt 0:00:03]} d5 {[%emt 0:08:07]} 2. g3 {[%emt 0:00:07]} Nf6 {[%emt 0:00:13]} 3. Bg2 {[%emt 0:00:05]} e6 {[%emt 0:01:10]} 4. O-O {[%emt 0:00:38]} Be7 {[%emt 0:00:22]} 5. d3 {[%emt 0:00:53]} O-O {[%emt 0:05:42]} 6. Nbd2 {[%emt 0:00:36]} Nc6 {[%emt 0:00:04]} 7. e4 {[%emt 0:01:21]} dxe4 {[%emt 0:00:13]} 8. dxe4 {[%emt 0:00:14]} e5 {[%emt 0:00:05]} 9. c3 {[%emt 0:06:51]} a5 $1 {[%emt 0:01:05] 9...a5 is better than 9...Be6. A07: Réti Opening: New York and Capablanca Systems.} 10. Qc2 {[%emt 0:01:47]} Bc5 {[%emt 0:00:19]} 11. Nc4 {[%emt 0:07:10]} Qe7 {[%emt 0:01:43]} 12. Ne3 {[%emt 0:01:31]} Be6 {[%emt 0:06:52]} 13. Nh4 {[%emt 0:06:11]} (13. Nf5 {looks sharper.} Qd7 14. Bg5 Ne8 15. N3h4) 13... Bxe3 {[%emt 0:07:14]} (13... Rfd8 $11) 14. Bxe3 $14 {[%emt 0:00:28] [#]} Bc4 $146 {[%emt 0:02:29]} ({Predecessor:} 14... Ng4 15. Bc1 a4 16. Nf5 Qc5 17. Qe2 Nf6 18. Be3 Qc4 19. Qxc4 Bxc4 20. Rfe1 Ra5 {1-0 (81) Kosic,D (2515)-Kostic,V (2430) Tivat 1995}) 15. Rfd1 {[%emt 0:06:21]} Rfd8 {[%emt 0:02:25]} 16. Nf5 {[%emt 0:03:43]} Qe6 {[%emt 0:02:30]} (16... Rxd1+ $14 17. Rxd1 Qf8) 17. b3 $16 {[%emt 0:03:36]} Ba6 {[%emt 0:00:12]} 18. Bh3 {[%emt 0:02:29]} Kh8 {[%emt 0:03:48]} 19. Kg2 {[%emt 0:01:46][%cal Of5g7] [#] And now Nxg7! would win.} Qe8 {[%emt 0:03:14]} 20. Bg5 {[%emt 0:04:49]} Rxd1 {[%emt 0:09:24]} 21. Rxd1 {[%emt 0:02:20] aiming for Bxf6.} Ng8 {[%emt 0:00:14]} 22. a4 {[%emt 0:03:31][%cal Ob3b4]} h6 {[%emt 0:04:41]} 23. Bc1 {[%emt 0:02:44] White is much more active.} Nf6 {[%emt 0:01:53]} 24. Kg1 {[%emt 0:03:07]} Rd8 {[%emt 0:03:09]} 25. f3 {[%emt 0:08:40]} Kh7 {[%emt 0:06:12]} 26. Bf1 {[%emt 0:02:48]} (26. Ne3 $16) 26... Bxf1 {[%emt 0:00:06]} 27. Kxf1 {[%emt 0:00:06]} Qe6 {[%emt 0:01:09]} 28. Kg2 {[%emt 0:02:27]} Rb8 {[%emt 0:01:45]} 29. Be3 {[%emt 0:07:22]} b5 {[%emt 0:00:32]} 30. axb5 {[%emt 0:02:11]} Rxb5 {[%emt 0:00:02]} 31. c4 {[%emt 0:00:19]} Rb8 {[%emt 0:01:19]} 32. Ra1 {[%emt 0:02:52]} (32. Qa2 $11) 32... Rd8 {[%emt 0:02:00]} (32... h5 $1 $15) 33. Rd1 $11 {[%emt 0:00:42]} Nb4 {[%emt 0:00:38]} 34. Qb1 {[%emt 0:01:16]} Rb8 {[%emt 0:03:27]} 35. Qc1 {[%emt 0:00:44][%cal Re3h6]} Ng8 {[%emt 0:01:39]} 36. Bc5 {[%emt 0:02:49]} (36. Ba7 $11 Rb7 37. Bf2) 36... Na6 {[%emt 0:00:33]} (36... g6 $1 $15 37. Ne3 Na6) 37. Qa3 {[%emt 0:00:54]} (37. Bf2 $11) 37... a4 {[%emt 0:01:13]} (37... g6 $17 38. Ne3 (38. Ba7 $2 Ra8 $17) 38... Nxc5 39. Qxc5 Rxb3) 38. bxa4 {[%emt 0:01:54]} Qxc4 {[%emt 0:00:08]} (38... g6 $11 39. Nh4 (39. Ne3 $2 Nxc5 40. Rd2 Qc6 $19) 39... Qxc4) 39. Bf2 $36 {[%emt 0:00:23][%mdl 2048] White has good play.} Nf6 {[%emt 0:03:49]} 40. Ne3 {[%emt 0:01:27]} Qe6 {[%emt 0:01:13]} 41. Nd5 {[%emt 0:00:35]} Ng8 {[%emt 0:02:52]} (41... Nxd5 $14 42. exd5 (42. Rxd5 f6 $11) 42... Qd6 43. Qd3+ Kg8) 42. Qd3 {[%emt 0:01:04]} Qc6 {[%emt 0:02:00]} 43. Qc3 {[%emt 0:01:39]} ({Better is} 43. a5 $16) 43... Qxc3 {[%emt 0:01:35]} 44. Nxc3 {[%emt 0:00:05]} Rb3 {[%emt 0:00:08]} 45. Nb5 {[%emt 0:00:59]} Rb2 {[%emt 0:02:05]} 46. Nc3 {[%emt 0:03:46][%cal Bb5c3,Bc3d5,Bd5e3][%mdl 32]} Rc2 {[%emt 0:00:18]} (46... Rb3 $5 {[%cal Rb3c3]} 47. Be1 Ra3 $14) 47. Nd5 {[%emt 0:00:41]} c6 {[%emt 0:01:27]} ({Black should play} 47... Ra2 $11) 48. Ne3 {[%emt 0:00:23]} Ra2 {[%emt 0:00:05]} 49. Rc1 {[%emt 0:00:48]} (49. Nc4 $16) 49... Nb4 $11 {[%emt 0:00:01][%cal Oa2f2] The position is equal.} 50. Rc4 {[%emt 0:00:20]} Nd3 {[%emt 0:00:36]} 51. Rc2 {[%emt 0:00:20]} Rxa4 {[%emt 0:00:16]} 52. Rxc6 {[%emt 0:00:09]} Nf6 {[%emt 0:01:37]} 53. Rc3 {[%emt 0:00:19]} Nxf2 {[%emt 0:00:09]} 54. Kxf2 {[%emt 0:00:04]} Rxe4 {[%emt 0:00:07][%mdl 4096] Endgame KRN-KRN} 55. Rc5 {[%emt 0:01:54]} h5 {[%emt 0:06:11]} 56. Ra5 {[%emt 0:00:43]} Rb4 {[%emt 0:00:13]} 57. Rxe5 {[%emt 0:00:15]} h4 {[%emt 0:00:30]} 58. gxh4 {[%emt 0:00:41]} Rxh4 {[%emt 0:00:06]} 59. Kg3 {[%emt 0:00:37]} Ra4 {[%emt 0:00:07]} 60. Ng4 {[%emt 0:00:26]} Kg6 {[%emt 0:01:16]} 61. Nxf6 {[%emt 0:00:46]} Kxf6 {[%emt 0:00:02] Weighted Error Value: White=0.18 (very precise) /Black=0.15 (very precise)} 1/2-1/2

[Event "1st Bella Italia International 2022"]
[Site "Lignano"]
[Date "2022.08.23"]
[Round "9.8"]
[White "Heredia Serrano, Carla"]
[Black "Loiacono, Leonardo"]
[Result "1/2-1/2"]
[ECO "B08"]
[WhiteElo "2090"]
[BlackElo "2291"]
[Annotator "NA RC"]
[PlyCount "128"]
[EventDate "2022.08.18"]
[EventCountry "ITA"]
[SourceTitle "playchess.com"]
[Source "ChessBase"]
[SourceQuality "1"]
[TimeControl "5400+30"]

1. e4 {[%emt 1:31:00]} g6 {[%emt 0:17:30]} 2. d4 {[%emt 0:00:00]} Bg7 {[%emt 0:00:03]} 3. Nc3 {[%emt 0:00:00]} d6 {[%emt 0:00:03]} 4. Nf3 {[%emt 0:00:00]} Nf6 {[%emt 0:00:04]} 5. h3 {[%emt 0:00:00]} O-O {[%emt 0:00:11]} 6. Be3 {[%emt 0:00:00]} c6 {[%emt 0:00:07]} 7. a4 {[%emt 0:00:00]} Qc7 {[%emt 0:00:35]} 8. a5 {[%emt 0:00:00]} Nbd7 {[%emt 0:00:54]} 9. Be2 {[%emt 0:00:00]} Rb8 {[%emt 0:03:37]} 10. O-O {[%emt 0:00:00]} b5 {[%emt 0:00:14]} 11. axb6 {[%emt 0:00:00]} axb6 {[%emt 0:00:03]} 12. d5 {[%emt 0:00:00]} Nc5 {[%emt 0:01:25]} 13. dxc6 {[%emt 0:00:00]} Ncxe4 {[%emt 0:01:14]} 14. Nxe4 {[%emt 0:00:00]} Nxe4 {[%emt 0:00:07]} 15. Nd4 {[%emt 0:00:00]} e5 {[%emt 0:00:33]} 16. Nb5 {[%emt 0:00:00]} Qxc6 {[%emt 0:00:09]} 17. f3 {[%emt 0:00:00]} Ng3 {[%emt 0:00:37]} 18. Na7 {[%emt 0:00:00]} Nxe2+ {[%emt 0:03:02]} 19. Qxe2 {[%emt 0:00:00]} Qd7 {[%emt 0:00:11]} 20. c4 {[%emt 0:00:00]} d5 {[%emt 0:03:15]} 21. cxd5 {[%emt 0:00:00]} Qxd5 {[%emt 0:00:06]} 22. Rfd1 {[%emt 0:00:00]} Qe6 {[%emt 0:00:12]} 23. Nb5 {[%emt 0:00:00]} Qe7 {[%emt 0:03:22]} 24. Ra7 {[%emt 0:00:00]} Qb4 {[%emt 0:00:13]} 25. Bg5 {[%emt 0:00:00]} Be6 {[%emt 0:23:25]} 26. Be7 {[%emt 0:00:00]} Bc4 {[%emt 0:00:10]} 27. Bxb4 {[%emt 0:00:00]} Bxe2 {[%emt 0:00:03]} 28. Bxf8 {[%emt 0:00:00]} Bxd1 {[%emt 0:00:06]} 29. Bd6 {[%emt 0:00:00]} Rc8 {[%emt 0:01:56]} 30. Nc3 {[%emt 0:00:00]} Bc2 {[%emt 0:02:28]} 31. Rb7 {[%emt 0:01:04]} e4 {[%emt 0:00:34]} 32. fxe4 {[%emt 0:01:29]} Bd4+ {[%emt 0:00:14]} 33. Kh2 {[%emt 0:03:34]} Kg7 {[%emt 0:01:36]} 34. e5 {[%emt 0:04:10]} Re8 {[%emt 0:00:51]} 35. Kg3 {[%emt 0:03:36]} g5 {[%emt 0:00:33]} 36. h4 {[%emt 0:01:12]} gxh4+ {[%emt 0:01:33]} 37. Kxh4 {[%emt 0:00:02]} Kg6 {[%emt 0:00:21]} 38. Kg3 {[%emt 0:00:50]} Ra8 {[%emt 0:01:47]} 39. Ne2 {[%emt 0:02:25]} Be4 {[%emt 0:04:20]} 40. Nf4+ {[%emt 0:00:13]} Kg7 {[%emt 0:00:11]} 41. Rc7 {[%emt 0:00:51]} Bxb2 {[%emt 0:04:25]} 42. e6 {[%emt 0:00:28]} Bg6 {[%emt 0:00:16]} 43. e7 {[%emt 0:00:18]} Re8 {[%emt 0:02:23]} 44. Rd7 {[%emt 0:00:46]} Bf6 {[%emt 0:05:58]} 45. Nd5 {[%emt 0:00:10]} Bf5 {[%emt 0:00:13]} 46. Nxf6 {[%emt 0:00:19]} Kxf6 {[%emt 0:00:13]} 47. Rb7 {[%emt 0:00:48]} Be4 {[%emt 0:03:55]} 48. Rxb6 {[%emt 0:00:17]} Kf5 {[%emt 0:00:07]} 49. Kf2 {[%emt 0:00:54]} f6 {[%emt 0:00:33]} 50. Ba3 {[%emt 0:00:33]} Kg6 {[%emt 0:01:19]} 51. g3 {[%emt 0:00:25]} Kf7 {[%emt 0:00:11]} 52. Ke3 {[%emt 0:00:06]} Bf5 {[%emt 0:00:52]} 53. Kf4 {[%emt 0:00:29]} Bd7 {[%emt 0:00:05]} 54. Rb7 {[%emt 0:00:52]} Be6 {[%emt 0:00:17]} 55. Bd6 {[%emt 0:00:28]} Bd5 {[%emt 0:00:11]} 56. Rd7 {[%emt 0:00:35]} Be6 {[%emt 0:19:37]} 57. Rd8 {[%emt 0:00:29]} Bb3 {[%emt 0:00:00]} 58. Bb4 {[%emt 0:00:22]} Ba4 {[%emt 0:00:00]} 59. Kf5 {[%emt 0:00:32]} Bc2+ {[%emt 0:00:00]} 60. Kg4 {[%emt 0:00:29]} Bg6 {[%emt 0:00:00]} 61. Kf4 {[%emt 0:00:40]} Bc2 {[%emt 0:00:00]} 62. Ba3 {[%emt 0:00:08]} Bg6 {[%emt 0:00:00]} 63. Kg4 {[%emt 0:00:10]} Ke6 {[%emt 0:00:00]} 64. Bb4 {[%emt 0:00:08]} Kf7 {[%emt 0:00:00]} 1/2-1/2

[Event "1st Bella Italia International 2022"]
[Site "Lignano"]
[Date "2022.08.23"]
[Round "9.9"]
[White "Haller, Quentin"]
[Black "Arana Garate, Jon"]
[Result "1/2-1/2"]
[ECO "D03"]
[WhiteElo "1995"]
[BlackElo "1933"]
[Annotator "NA RC"]
[PlyCount "67"]
[EventDate "2022.08.18"]
[EventCountry "ITA"]
[SourceTitle "playchess.com"]
[Source "ChessBase"]
[SourceQuality "1"]
[TimeControl "5400+30"]

1. d4 {[%emt 0:00:17]} Nf6 {[%emt 0:00:22]} 2. Bg5 {[%emt 0:00:32]} d5 {[%emt 0:06:06]} 3. e3 {[%emt 0:00:46]} e6 {[%emt 0:00:36]} 4. Nd2 {[%emt 0:00:39]} Be7 {[%emt 0:00:18]} 5. Bd3 {[%emt 0:00:50]} O-O {[%emt 0:02:40]} 6. Ngf3 {[%emt 0:01:21]} b6 {[%emt 0:00:26]} 7. Ne5 {[%emt 0:02:24]} h6 {[%emt 0:02:42]} 8. Bh4 {[%emt 0:02:21]} Nfd7 {[%emt 0:01:21]} 9. Bg3 {[%emt 0:02:15]} Nxe5 {[%emt 0:00:31]} 10. Bxe5 {[%emt 0:00:40]} Bf6 {[%emt 0:08:17]} 11. Nf3 {[%emt 0:05:40]} Nd7 {[%emt 0:03:18]} 12. Bg3 {[%emt 0:01:28]} c5 {[%emt 0:01:09]} 13. c3 {[%emt 0:02:25]} Re8 {[%emt 0:02:22]} 14. O-O {[%emt 0:03:57]} Bb7 {[%emt 0:03:55]} 15. Re1 {[%emt 0:02:54]} e5 {[%emt 0:07:22]} 16. Bb5 {[%emt 0:02:19]} e4 {[%emt 0:01:38]} 17. Ne5 {[%emt 0:05:55]} Bxe5 {[%emt 0:03:39]} 18. Bxe5 {[%emt 0:02:10]} a6 {[%emt 0:08:55]} 19. Bxd7 {[%emt 0:01:14]} Qxd7 {[%emt 0:00:02]} 20. Bg3 {[%emt 0:03:35]} Bc6 {[%emt 0:03:12]} 21. Qb3 {[%emt 0:02:04]} cxd4 {[%emt 0:07:04]} 22. cxd4 {[%emt 0:00:45]} Re6 {[%emt 0:09:11]} 23. Qxb6 {[%emt 0:08:40]} Bb5 {[%emt 0:00:25]} 24. Qa5 {[%emt 0:01:04]} Rc8 {[%emt 0:00:42]} 25. Rac1 {[%emt 0:00:59]} Rec6 {[%emt 0:00:20]} 26. Qd2 {[%emt 0:01:07]} Bd3 {[%emt 0:00:42]} 27. Rc3 {[%emt 0:02:15]} Rxc3 {[%emt 0:04:21]} 28. bxc3 {[%emt 0:00:07]} Qa4 {[%emt 0:01:52]} 29. Bd6 {[%emt 0:05:11]} Rc6 {[%emt 0:03:07]} 30. Bc5 {[%emt 0:00:43]} Rc7 {[%emt 0:00:20]} 31. Qb2 {[%emt 0:01:41]} Qb5 {[%emt 0:04:47]} 32. Qxb5 {[%emt 0:00:12]} axb5 {[%emt 0:00:01]} 33. f4 {[%emt 0:03:12]} f5 {[%emt 0:00:33]} 34. a3 {[%emt 0:00:09]} 1/2-1/2

[Event "1st Bella Italia International 2022"]
[Site "Lignano"]
[Date "2022.08.23"]
[Round "9.10"]
[White "Etxagibel Larranaga, Asier"]
[Black "Massironi, Marco"]
[Result "1-0"]
[ECO "A20"]
[WhiteElo "2118"]
[BlackElo "2200"]
[Annotator "NA RC"]
[PlyCount "55"]
[EventDate "2022.08.18"]
[EventCountry "ITA"]
[SourceTitle "playchess.com"]
[Source "ChessBase"]
[SourceQuality "1"]
[TimeControl "5400+30"]

1. c4 {[%emt 0:00:02]} e5 {[%emt 0:11:30]} 2. g3 {[%emt 0:00:09]} Nf6 {[%emt 0:00:16]} 3. Bg2 {[%emt 0:00:03]} h6 {[%emt 0:00:08]} 4. Nc3 {[%emt 0:01:07]} Bb4 {[%emt 0:00:04]} 5. Nf3 {[%emt 0:10:22]} e4 {[%emt 0:05:41]} 6. Nd4 {[%emt 0:00:41]} Bxc3 {[%emt 0:03:47]} 7. dxc3 {[%emt 0:02:16]} d5 {[%emt 0:01:38]} 8. cxd5 {[%emt 0:02:34]} Qxd5 {[%emt 0:00:03]} 9. Qb3 {[%emt 0:00:56]} Qxb3 {[%emt 0:05:13]} 10. axb3 {[%emt 0:00:36]} O-O {[%emt 0:01:44]} 11. Bf4 {[%emt 0:14:51]} Na6 {[%emt 0:05:38]} 12. Nb5 {[%emt 0:11:57]} g5 {[%emt 0:17:14]} 13. Bd2 {[%emt 0:13:32]} Bd7 {[%emt 0:12:28]} 14. Nd4 {[%emt 0:00:46]} c5 {[%emt 0:02:04]} 15. Nc2 {[%emt 0:01:06]} Be6 {[%emt 0:03:58]} 16. c4 {[%emt 0:00:50]} Bf5 {[%emt 0:08:15]} 17. h4 {[%emt 0:03:33]} e3 {[%emt 0:03:55]} 18. Nxe3 {[%emt 0:01:44]} Be4 {[%emt 0:00:03]} 19. f3 {[%emt 0:10:48]} Bc6 {[%emt 0:00:02]} 20. Bc3 {[%emt 0:00:29]} Nh5 {[%emt 0:07:13]} 21. hxg5 {[%emt 0:02:46]} Nxg3 {[%emt 0:02:05]} 22. Rxh6 {[%emt 0:00:32]} f6 {[%emt 0:00:02]} 23. gxf6 {[%emt 0:00:31]} Rfe8 {[%emt 0:00:13]} 24. Kf2 {[%emt 0:05:51]} Rxe3 {[%emt 0:00:58]} 25. Kxg3 {[%emt 0:01:24]} Kf7 {[%emt 0:02:57]} 26. Rh7+ {[%emt 0:00:10]} Kg6 {[%emt 0:00:01]} 27. Rg7+ {[%emt 0:00:10]} Kf5 {[%emt 0:00:02]} 28. Bh3# {[%emt 0:00:43]} 1-0

[Event "1st Bella Italia International 2022"]
[Site "Lignano"]
[Date "2022.08.23"]
[Round "9.11"]
[White "Titze, Leo"]
[Black "Perossa, Nicolas"]
[Result "1-0"]
[ECO "E73"]
[WhiteElo "2071"]
[BlackElo "2107"]
[Annotator "NA RC"]
[PlyCount "79"]
[EventDate "2022.08.18"]
[EventCountry "ITA"]
[SourceTitle "playchess.com"]
[Source "ChessBase"]
[SourceQuality "1"]
[TimeControl "5400+30"]

1. d4 {[%emt 0:17:58]} Nf6 {[%emt 0:00:10]} 2. c4 {[%emt 0:00:04]} g6 {[%emt 0:00:11]} 3. Nc3 {[%emt 0:00:04]} Bg7 {[%emt 0:00:10]} 4. e4 {[%emt 0:00:04]} d6 {[%emt 0:00:10]} 5. Be2 {[%emt 0:00:04]} O-O {[%emt 0:00:28]} 6. Be3 {[%emt 0:00:02]} e5 {[%emt 0:00:21]} 7. d5 {[%emt 0:00:06]} a5 {[%emt 0:00:14]} 8. g4 {[%emt 0:00:07]} Na6 {[%emt 0:03:24]} 9. h4 {[%emt 0:01:33]} Nd7 {[%emt 0:04:30]} 10. h5 {[%emt 0:03:43]} f5 {[%emt 0:08:45]} 11. hxg6 {[%emt 0:01:03]} hxg6 {[%emt 0:00:52]} 12. gxf5 {[%emt 0:01:16]} gxf5 {[%emt 0:00:10]} 13. exf5 {[%emt 0:03:07]} Ndc5 {[%emt 0:00:26]} 14. Nf3 {[%emt 0:06:02]} Bxf5 {[%emt 0:02:17]} 15. Qd2 {[%emt 0:08:36]} Nb4 {[%emt 0:07:25]} 16. Kf1 {[%emt 0:05:19]} Nc2 {[%emt 0:13:25]} 17. Rd1 {[%emt 0:00:28]} Ne4 {[%emt 0:06:21]} 18. Nxe4 {[%emt 0:01:26]} Bxe4 {[%emt 0:00:02]} 19. Rh3 {[%emt 0:05:13]} Nxe3+ {[%emt 0:00:16]} 20. Qxe3 {[%emt 0:00:09]} Rf4 {[%emt 0:00:45]} 21. Rg3 {[%emt 0:05:26]} Bxf3 {[%emt 0:46:25]} 22. Bxf3 {[%emt 0:02:59]} Qf6 {[%emt 0:01:32]} 23. Be4 {[%emt 0:05:02]} Qh4 {[%emt 0:00:25]} 24. Re1 {[%emt 0:00:50]} Raf8 {[%emt 0:00:24]} 25. Kg2 {[%emt 0:00:53]} R8f6 {[%emt 0:00:51]} 26. f3 {[%emt 0:01:10]} Rh6 {[%emt 0:01:20]} 27. Rg1 {[%emt 0:03:49]} Rf7 {[%emt 0:01:19]} 28. Rg4 {[%emt 0:06:43]} Qh3+ {[%emt 0:01:19]} 29. Kf2 {[%emt 0:00:20]} Rhf6 {[%emt 0:00:27]} 30. Ke2 {[%emt 0:04:15]} Kf8 {[%emt 0:00:34]} 31. Qa7 {[%emt 0:04:35]} Re7 {[%emt 0:00:30]} 32. Qb8+ {[%emt 0:00:36]} Re8 {[%emt 0:00:04]} 33. Qxc7 {[%emt 0:00:36]} Re7 {[%emt 0:00:12]} 34. Qb6 {[%emt 0:02:13]} Qh2+ {[%emt 0:00:08]} 35. R1g2 {[%emt 0:00:16]} Qh6 {[%emt 0:00:23]} 36. Bg6 {[%emt 0:01:14]} Rd7 {[%emt 0:01:05]} 37. Qxa5 {[%emt 0:01:29]} Ke7 {[%emt 0:00:40]} 38. Be4 {[%emt 0:01:50]} Bf8 {[%emt 0:00:24]} 39. Qe1 {[%emt 0:01:35]} b6 {[%emt 0:00:55]} 40. Rh4 {[%emt 0:00:50]} 1-0

[Event "1st Bella Italia International 2022"]
[Site "Lignano"]
[Date "2022.08.23"]
[Round "9.12"]
[White "Cristiani, Cesare"]
[Black "Lapiccirella, Daniele"]
[Result "1/2-1/2"]
[ECO "D45"]
[WhiteElo "2006"]
[BlackElo "2173"]
[Annotator "NA RC"]
[PlyCount "20"]
[EventDate "2022.08.18"]
[EventCountry "ITA"]
[SourceTitle "playchess.com"]
[Source "ChessBase"]
[SourceQuality "1"]
[TimeControl "5400+30"]

1. d4 {[%emt 0:00:03]} d5 {[%emt 0:00:04]} 2. c4 {[%emt 0:00:06]} c6 {[%emt 0:00:04]} 3. Nc3 {[%emt 0:00:08]} Nf6 {[%emt 0:00:05]} 4. Nf3 {[%emt 0:00:21]} e6 {[%emt 0:00:28]} 5. e3 {[%emt 0:00:06]} Nbd7 {[%emt 0:00:06]} 6. Qc2 {[%emt 0:00:09]} Bd6 {[%emt 0:00:08]} 7. b3 {[%emt 0:01:03]} O-O {[%emt 0:00:08]} 8. Be2 {[%emt 0:00:05]} b6 {[%emt 0:00:25]} 9. O-O {[%emt 0:00:43]} Bb7 {[%emt 0:00:05]} 10. Rd1 {[%emt 0:00:28]} Qe7 {[%emt 0:04:18]} 1/2-1/2